[Event "December 19 Early 2023"]
[Site "https://www.chess.com"]
[Date "2023.12.19"]
[Round "11"]
[White "Vincenti, Leonardo"]
[Black "Puzzlebot_1294"]
[Result "0-1"]
[Board "94"]
[TimeControl "180+1"]
[WhiteFideId "28550820"]
[WhiteElo "2054"]
[BlackElo "2634"]
[WhiteTeam "ITA"]
[WhiteClock "0:00:24"]
[BlackClock "0:01:26"]

1. e4 {[%clk 0:03:00]}  h6 {[%clk 0:03:00]} 2. d4 {[%clk 0:02:59]}  e6 {[%clk 0:02:57]} 3. Nc3 {[%clk 0:02:59]}  d5 {[%clk 0:02:55]} 4. exd5 {[%clk 0:02:56]}  exd5 {[%clk 0:02:55]} 5. Bd3 {[%clk 0:02:56]}  Nf6 {[%clk 0:02:53]} 6. Nf3 {[%clk 0:02:55]}  c6 {[%clk 0:02:50]} 7. O-O {[%clk 0:02:53]}  Be7 {[%clk 0:02:51]} 8. h3 {[%clk 0:02:52]}  O-O {[%clk 0:02:51]} 9. Bf4 {[%clk 0:02:50]}  c5 {[%clk 0:02:51]} 10. dxc5 {[%clk 0:02:50]}  Bxc5 {[%clk 0:02:52]} 11. Ne2 {[%clk 0:02:45]}  Nc6 {[%clk 0:02:51]} 12. c3 {[%clk 0:02:45]}  Re8 {[%clk 0:02:50]} 13. Ned4 {[%clk 0:02:43]}  Qb6 {[%clk 0:02:49]} 14. Qd2 {[%clk 0:02:35]}  Ne4 {[%clk 0:02:47]} 15. Qc2 {[%clk 0:02:03]}  Nxd4 {[%clk 0:02:45]} 16. cxd4 {[%clk 0:02:03]}  Bxd4 {[%clk 0:02:45]} 17. Qa4 {[%clk 0:02:01]}  Bxf2+ {[%clk 0:02:39]} 18. Kh2 {[%clk 0:01:56]}  Be6 {[%clk 0:02:30]} 19. Bxe4 {[%clk 0:01:39]}  dxe4 {[%clk 0:02:31]} 20. Ne5 {[%clk 0:01:31]}  Bc5 {[%clk 0:02:21]} 21. Qxe4 {[%clk 0:01:25]}  Rad8 {[%clk 0:02:15]} 22. Nc4 {[%clk 0:01:21]}  Qb4 {[%clk 0:02:08]} 23. Rac1 {[%clk 0:01:03]}  b5 {[%clk 0:01:53]} 24. a3 {[%clk 0:00:55]}  Qa4 {[%clk 0:01:33]} 25. Nd2 {[%clk 0:00:44]}  Bc4 {[%clk 0:01:28]} 26. b3 {[%clk 0:00:34]}  Qxa3 {[%clk 0:01:23]} 27. Nxc4 {[%clk 0:00:34]}  Rxe4 {[%clk 0:01:18]} 28. Nxa3 {[%clk 0:00:34]}  Bxa3 {[%clk 0:01:19]} 29. Ra1 {[%clk 0:00:35]}  Rxf4 {[%clk 0:01:19]} 30. Rxf4 {[%clk 0:00:32]}  Bd6 {[%clk 0:01:20]} 31. g3 {[%clk 0:00:31]}  Bxf4 {[%clk 0:01:19]} 32. gxf4 {[%clk 0:00:32]}  Rd2+ {[%clk 0:01:19]} 33. Kg3 {[%clk 0:00:31]}  Rd3+ {[%clk 0:01:19]} 34. Kg4 {[%clk 0:00:31]}  Rxb3 {[%clk 0:01:20]} 35. Rxa7 {[%clk 0:00:31]}  b4 {[%clk 0:01:18]} 36. Rb7 {[%clk 0:00:29]}  Rb1 {[%clk 0:01:18]} 37. Kf5 {[%clk 0:00:27]}  b3 {[%clk 0:01:18]} 38. h4 {[%clk 0:00:27]}  b2 {[%clk 0:01:17]} 39. h5 {[%clk 0:00:27]}  Kh7 {[%clk 0:01:16]} 40. Rb6 {[%clk 0:00:18]}  Rh1 {[%clk 0:01:13]} 41. Rxb2 {[%clk 0:00:18]}  Rxh5+ {[%clk 0:01:13]} 42. Kg4 {[%clk 0:00:18]}  Ra5 {[%clk 0:01:14]} 43. Rb7 {[%clk 0:00:18]}  f5+ {[%clk 0:01:14]} 44. Kh4 {[%clk 0:00:18]}  Ra3 {[%clk 0:01:15]} 45. Rf7 {[%clk 0:00:16]}  Kg6 {[%clk 0:01:11]} 46. Rb7 {[%clk 0:00:16]}  Rf3 {[%clk 0:01:06]} 47. Rb6+ {[%clk 0:00:13]}  Kh7 {[%clk 0:01:06]} 48. Rb4 {[%clk 0:00:11]}  Rxf4+ {[%clk 0:01:07]} 49. Rxf4 {[%clk 0:00:10]}  g5+ {[%clk 0:01:07]} 50. Kg3 {[%clk 0:00:11]}  gxf4+ {[%clk 0:01:08]} 51. Kxf4 {[%clk 0:00:12]}  Kg6 {[%clk 0:01:09]} 52. Kf3 {[%clk 0:00:12]}  Kg5 {[%clk 0:01:10]} 53. Kg3 {[%clk 0:00:13]}  f4+ {[%clk 0:01:11]} 54. Kf3 {[%clk 0:00:13]}  Kf5 {[%clk 0:01:12]} 55. Kf2 {[%clk 0:00:13]}  Kg4 {[%clk 0:01:13]} 56. Kg2 {[%clk 0:00:14]}  f3+ {[%clk 0:01:14]} 57. Kf2 {[%clk 0:00:14]}  Kf4 {[%clk 0:01:15]} 58. Kf1 {[%clk 0:00:15]}  Kg3 {[%clk 0:01:16]} 59. Kg1 {[%clk 0:00:16]}  f2+ {[%clk 0:01:16]} 60. Kf1 {[%clk 0:00:16]}  h5 {[%clk 0:01:16]} 61. Ke2 {[%clk 0:00:16]}  Kg2 {[%clk 0:01:17]} 62. Ke3 {[%clk 0:00:16]}  f1=Q {[%clk 0:01:18]} 63. Ke4 {[%clk 0:00:16]}  Qf3+ {[%clk 0:01:18]} 64. Ke5 {[%clk 0:00:17]}  h4 {[%clk 0:01:19]} 65. Kd6 {[%clk 0:00:18]}  h3 {[%clk 0:01:20]} 66. Kc7 {[%clk 0:00:19]}  h2 {[%clk 0:01:21]} 67. Kd6 {[%clk 0:00:19]}  h1=Q {[%clk 0:01:22]} 68. Kc7 {[%clk 0:00:20]}  Qe1 {[%clk 0:01:22]} 69. Kb6 {[%clk 0:00:21]}  Qfe2 {[%clk 0:01:23]} 70. Kc5 {[%clk 0:00:22]}  Q2d2 {[%clk 0:01:24]} 71. Kb5 {[%clk 0:00:22]}  Qb1+ {[%clk 0:01:24]} 72. Kc4 {[%clk 0:00:23]}  Qbc1+ {[%clk 0:01:24]} 73. Kb3 {[%clk 0:00:23]}  Qdb2+ {[%clk 0:01:25]} 74. Ka4 {[%clk 0:00:24]}  Qca1# {[%clk 0:01:26]} 0-1

[Event "December 19 Early 2023"]
[Site "https://www.chess.com"]
[Date "2023.12.19"]
[Round "11"]
[White "Stillger, Bernhard"]
[Black "Aswath, S"]
[Result "0-1"]
[Board "96"]
[TimeControl "180+1"]
[WhiteFideId "4610768"]
[BlackFideId "46694919"]
[WhiteElo "2252"]
[BlackElo "2138"]
[WhiteTeam "GER"]
[BlackTeam "IND"]
[WhiteClock "0:00:23"]
[BlackClock "0:01:28"]

1. Nf3 {[%clk 0:03:00]}  Nf6 {[%clk 0:02:59]} 2. g3 {[%clk 0:03:00]}  g6 {[%clk 0:02:59]} 3. b3 {[%clk 0:03:00]}  b6 {[%clk 0:02:58]} 4. Bb2 {[%clk 0:03:00]}  Bg7 {[%clk 0:02:58]} 5. Bg2 {[%clk 0:03:00]}  Bb7 {[%clk 0:02:59]} 6. O-O {[%clk 0:03:00]}  O-O {[%clk 0:02:59]} 7. c4 {[%clk 0:03:00]}  c5 {[%clk 0:02:59]} 8. d4 {[%clk 0:02:59]}  cxd4 {[%clk 0:02:58]} 9. Qxd4 {[%clk 0:03:00]}  Nc6 {[%clk 0:02:58]} 10. Qf4 {[%clk 0:02:59]}  d5 {[%clk 0:02:56]} 11. Rd1 {[%clk 0:02:58]}  Qb8 {[%clk 0:02:43]} 12. Qxb8 {[%clk 0:02:50]}  Raxb8 {[%clk 0:02:44]} 13. Na3 {[%clk 0:02:43]}  Rfd8 {[%clk 0:02:41]} 14. h3 {[%clk 0:02:16]}  Nb4 {[%clk 0:02:34]} 15. Ne5 {[%clk 0:01:51]}  Nd7 {[%clk 0:02:19]} 16. Nxd7 {[%clk 0:01:36]}  Bxb2 {[%clk 0:02:18]} 17. Nxb8 {[%clk 0:01:36]}  Bxa3 {[%clk 0:02:17]} 18. cxd5 {[%clk 0:01:27]}  Rxb8 {[%clk 0:02:15]} 19. Rd2 {[%clk 0:01:18]}  Rd8 {[%clk 0:02:07]} 20. Rad1 {[%clk 0:01:17]}  Na6 {[%clk 0:02:06]} 21. d6 {[%clk 0:01:10]}  Bxg2 {[%clk 0:01:51]} 22. dxe7 {[%clk 0:01:09]}  Re8 {[%clk 0:01:48]} 23. Rd8 {[%clk 0:01:03]}  Bc6 {[%clk 0:01:47]} 24. Rxe8+ {[%clk 0:01:00]}  Bxe8 {[%clk 0:01:48]} 25. Rd8 {[%clk 0:01:00]}  Nc7 {[%clk 0:01:46]} 26. Rc8 {[%clk 0:00:57]}  Bd6 {[%clk 0:01:46]} 27. e4 {[%clk 0:00:55]}  f6 {[%clk 0:01:46]} 28. f4 {[%clk 0:00:49]}  Kf7 {[%clk 0:01:46]} 29. Kg2 {[%clk 0:00:48]}  Kxe7 {[%clk 0:01:46]} 30. h4 {[%clk 0:00:47]}  Bc6 {[%clk 0:01:41]} 31. Rh8 {[%clk 0:00:43]}  Bxe4+ {[%clk 0:01:40]} 32. Kh3 {[%clk 0:00:43]}  h5 {[%clk 0:01:38]} 33. Rh7+ {[%clk 0:00:42]}  Ke6 {[%clk 0:01:37]} 34. Kh2 {[%clk 0:00:41]}  a5 {[%clk 0:01:35]} 35. Rg7 {[%clk 0:00:39]}  Nd5 {[%clk 0:01:29]} 36. Rg8 {[%clk 0:00:23]}  Bc5 {[%clk 0:01:28]} 0-1

[Event "December 19 Early 2023"]
[Site "https://www.chess.com"]
[Date "2023.12.19"]
[Round "11"]
[White "Wanyama, Harold"]
[Black "Fishchuk, Vladyslav"]
[Result "1-0"]
[Board "97"]
[TimeControl "180+1"]
[WhiteFideId "10000380"]
[BlackFideId "34122117"]
[WhiteElo "2228"]
[BlackElo "2055"]
[WhiteTeam "UGA"]
[BlackTeam "UKR"]
[WhiteClock "0:00:19"]
[BlackClock "0:00:08"]

1. d4 {[%clk 0:02:59]}  Nf6 {[%clk 0:02:27]} 2. c4 {[%clk 0:02:58]}  e6 {[%clk 0:02:26]} 3. g3 {[%clk 0:02:57]}  d5 {[%clk 0:02:26]} 4. Bg2 {[%clk 0:02:57]}  Be7 {[%clk 0:02:25]} 5. Nf3 {[%clk 0:02:56]}  O-O {[%clk 0:02:25]} 6. O-O {[%clk 0:02:57]}  c6 {[%clk 0:02:26]} 7. Qc2 {[%clk 0:02:55]}  dxc4 {[%clk 0:02:26]} 8. Qxc4 {[%clk 0:02:55]}  b5 {[%clk 0:02:26]} 9. Qc2 {[%clk 0:02:55]}  Bb7 {[%clk 0:02:26]} 10. Nbd2 {[%clk 0:02:50]}  Nbd7 {[%clk 0:02:24]} 11. e4 {[%clk 0:02:49]}  c5 {[%clk 0:02:23]} 12. e5 {[%clk 0:02:49]}  Nd5 {[%clk 0:02:22]} 13. dxc5 {[%clk 0:02:46]}  Nxc5 {[%clk 0:02:21]} 14. a3 {[%clk 0:02:35]}  a5 {[%clk 0:02:19]} 15. Ne4 {[%clk 0:02:27]}  Rc8 {[%clk 0:02:02]} 16. Neg5 {[%clk 0:02:23]}  g6 {[%clk 0:02:00]} 17. Qe2 {[%clk 0:02:13]}  Qb6 {[%clk 0:01:57]} 18. Nd4 {[%clk 0:01:56]}  Na4 {[%clk 0:01:27]} 19. Qg4 {[%clk 0:01:46]}  Rxc1 {[%clk 0:01:21]} 20. Raxc1 {[%clk 0:01:38]}  Bxg5 {[%clk 0:01:21]} 21. Qxg5 {[%clk 0:01:37]}  Qxd4 {[%clk 0:01:22]} 22. Rfd1 {[%clk 0:01:29]}  Qxb2 {[%clk 0:01:16]} 23. Rb1 {[%clk 0:01:30]}  Qc2 {[%clk 0:01:07]} 24. Rdc1 {[%clk 0:01:29]}  Qe2 {[%clk 0:00:41]} 25. Re1 {[%clk 0:01:24]}  Qd3 {[%clk 0:00:34]} 26. Bf1 {[%clk 0:01:20]}  Qxa3 {[%clk 0:00:33]} 27. Rxb5 {[%clk 0:01:18]}  Bc6 {[%clk 0:00:32]} 28. Rxa5 {[%clk 0:01:14]}  Qb4 {[%clk 0:00:32]} 29. Rxa4 {[%clk 0:00:58]}  Bxa4 {[%clk 0:00:32]} 30. Rc1 {[%clk 0:00:53]}  Bb3 {[%clk 0:00:28]} 31. h4 {[%clk 0:00:52]}  h5 {[%clk 0:00:27]} 32. Be2 {[%clk 0:00:48]}  Qe4 {[%clk 0:00:25]} 33. Bxh5 {[%clk 0:00:43]}  Nb4 {[%clk 0:00:16]} 34. Bg4 {[%clk 0:00:32]}  Bd5 {[%clk 0:00:16]} 35. f3 {[%clk 0:00:30]}  Qd4+ {[%clk 0:00:16]} 36. Kh2 {[%clk 0:00:27]}  Nd3 {[%clk 0:00:16]} 37. Rc2 {[%clk 0:00:24]}  Qxe5 {[%clk 0:00:15]} 38. Qh6 {[%clk 0:00:21]}  Ne1 {[%clk 0:00:11]} 39. Rf2 {[%clk 0:00:19]}  Qe3 {[%clk 0:00:08]} 40. Qxe3 {[%clk 0:00:19]} 1-0

[Event "December 19 Early 2023"]
[Site "https://www.chess.com"]
[Date "2023.12.19"]
[Round "11"]
[White "Matveeva, Olga"]
[Black "Dinu, Dumitru-Daniel"]
[Result "0-1"]
[Board "98"]
[TimeControl "180+1"]
[WhiteFideId "24107018"]
[BlackFideId "1208403"]
[WhiteElo "1883"]
[BlackElo "2240"]
[WhiteTeam "RUS"]
[BlackTeam "ROU"]
[WhiteClock "0:00:02"]
[BlackClock "0:00:08"]

1. d4 {[%clk 0:03:00]}  Nf6 {[%clk 0:02:57]} 2. c4 {[%clk 0:03:01]}  e6 {[%clk 0:02:57]} 3. g3 {[%clk 0:03:01]}  c5 {[%clk 0:02:52]} 4. d5 {[%clk 0:03:01]}  exd5 {[%clk 0:02:52]} 5. cxd5 {[%clk 0:03:02]}  d6 {[%clk 0:02:52]} 6. Nc3 {[%clk 0:03:02]}  g6 {[%clk 0:02:51]} 7. Bg2 {[%clk 0:03:03]}  Bg7 {[%clk 0:02:51]} 8. Nf3 {[%clk 0:03:03]}  O-O {[%clk 0:02:52]} 9. O-O {[%clk 0:03:04]}  Re8 {[%clk 0:02:50]} 10. Nd2 {[%clk 0:02:56]}  Nbd7 {[%clk 0:02:44]} 11. h3 {[%clk 0:02:46]}  a6 {[%clk 0:02:37]} 12. a4 {[%clk 0:02:45]}  Rb8 {[%clk 0:02:37]} 13. Nc4 {[%clk 0:02:44]}  Ne5 {[%clk 0:02:34]} 14. Na3 {[%clk 0:02:44]}  b5 {[%clk 0:02:19]} 15. axb5 {[%clk 0:02:41]}  axb5 {[%clk 0:02:03]} 16. Naxb5 {[%clk 0:02:41]}  Qb6 {[%clk 0:01:58]} 17. e4 {[%clk 0:02:04]}  Ba6 {[%clk 0:01:42]} 18. Rxa6 {[%clk 0:02:01]}  Qxa6 {[%clk 0:01:41]} 19. Nc7 {[%clk 0:02:00]}  Qb6 {[%clk 0:01:41]} 20. Nxe8 {[%clk 0:01:59]}  Nxe8 {[%clk 0:01:41]} 21. Qa4 {[%clk 0:01:53]}  Nd3 {[%clk 0:01:36]} 22. Be3 {[%clk 0:01:26]}  Nxb2 {[%clk 0:01:24]} 23. Qc2 {[%clk 0:01:23]}  Nc4 {[%clk 0:01:22]} 24. Rb1 {[%clk 0:01:17]}  Qd8 {[%clk 0:01:12]} 25. Rxb8 {[%clk 0:01:16]}  Qxb8 {[%clk 0:01:11]} 26. Bf4 {[%clk 0:01:13]}  Bd4 {[%clk 0:00:58]} 27. Ne2 {[%clk 0:01:09]}  Na3 {[%clk 0:00:55]} 28. Qa2 {[%clk 0:01:06]}  Qb2 {[%clk 0:00:51]} 29. Qxb2 {[%clk 0:01:00]}  Bxb2 {[%clk 0:00:51]} 30. Bf1 {[%clk 0:00:47]}  c4 {[%clk 0:00:48]} 31. Bc1 {[%clk 0:00:38]}  c3 {[%clk 0:00:42]} 32. f4 {[%clk 0:00:34]}  Nf6 {[%clk 0:00:35]} 33. e5 {[%clk 0:00:27]}  dxe5 {[%clk 0:00:28]} 34. d6 {[%clk 0:00:25]}  exf4 {[%clk 0:00:23]} 35. gxf4 {[%clk 0:00:26]}  Nd7 {[%clk 0:00:16]} 36. Bg2 {[%clk 0:00:20]}  Nc4 {[%clk 0:00:10]} 37. Bc6 {[%clk 0:00:18]}  Ncb6 {[%clk 0:00:10]} 38. Kf2 {[%clk 0:00:17]}  Kg7 {[%clk 0:00:10]} 39. Ke3 {[%clk 0:00:17]}  Kf6 {[%clk 0:00:10]} 40. Ke4 {[%clk 0:00:17]}  Ke6 {[%clk 0:00:10]} 41. Nd4+ {[%clk 0:00:15]}  Kxd6 {[%clk 0:00:10]} 42. Bxd7 {[%clk 0:00:13]}  Nxd7 {[%clk 0:00:11]} 43. Be3 {[%clk 0:00:11]}  Nc5+ {[%clk 0:00:11]} 44. Kf3 {[%clk 0:00:10]}  Kd5 {[%clk 0:00:12]} 45. Nc2 {[%clk 0:00:09]}  Kc4 {[%clk 0:00:11]} 46. f5 {[%clk 0:00:09]}  gxf5 {[%clk 0:00:11]} 47. Kf4 {[%clk 0:00:09]}  Nd3+ {[%clk 0:00:11]} 48. Kxf5 {[%clk 0:00:08]}  Kb3 {[%clk 0:00:11]} 49. Nd4+ {[%clk 0:00:08]}  Ka2 {[%clk 0:00:12]} 50. Kf6 {[%clk 0:00:07]}  c2 {[%clk 0:00:10]} 51. Kxf7 {[%clk 0:00:07]}  Bxd4 {[%clk 0:00:11]} 52. Bd2 {[%clk 0:00:07]}  Bc3 {[%clk 0:00:10]} 53. Be3 {[%clk 0:00:07]}  Bb2 {[%clk 0:00:08]} 54. h4 {[%clk 0:00:06]}  Bc1 {[%clk 0:00:08]} 55. Bd4 {[%clk 0:00:02]}  Bd2 {[%clk 0:00:08]} 0-1

[Event "December 19 Early 2023"]
[Site "https://www.chess.com"]
[Date "2023.12.19"]
[Round "11"]
[White "Joel Paul Ganta"]
[Black "Hrebenshchykova, Yelyzaveta"]
[Result "0-1"]
[Board "102"]
[TimeControl "180+1"]
[WhiteFideId "35066145"]
[BlackFideId "14159899"]
[WhiteElo "1891"]
[BlackElo "2045"]
[WhiteTeam "IND"]
[BlackTeam "UKR"]
[WhiteClock "0:01:06"]
[BlackClock "0:00:16"]

1. e4 {[%clk 0:02:57]}  e5 {[%clk 0:02:57]} 2. Nf3 {[%clk 0:02:57]}  Nc6 {[%clk 0:02:58]} 3. Bb5 {[%clk 0:02:57]}  a6 {[%clk 0:02:57]} 4. Ba4 {[%clk 0:02:56]}  Nf6 {[%clk 0:02:58]} 5. O-O {[%clk 0:02:56]}  Be7 {[%clk 0:02:57]} 6. c3 {[%clk 0:02:50]}  Nxe4 {[%clk 0:02:38]} 7. Re1 {[%clk 0:02:45]}  Nf6 {[%clk 0:02:32]} 8. Nxe5 {[%clk 0:02:41]}  Nxe5 {[%clk 0:02:32]} 9. Rxe5 {[%clk 0:02:42]}  O-O {[%clk 0:02:32]} 10. d4 {[%clk 0:02:39]}  d5 {[%clk 0:02:26]} 11. Bc2 {[%clk 0:02:37]}  Bd6 {[%clk 0:02:25]} 12. Re1 {[%clk 0:02:31]}  h6 {[%clk 0:02:17]} 13. h3 {[%clk 0:02:26]}  Bd7 {[%clk 0:02:14]} 14. Qf3 {[%clk 0:02:25]}  Re8 {[%clk 0:02:08]} 15. Rxe8+ {[%clk 0:02:22]}  Bxe8 {[%clk 0:02:01]} 16. Nd2 {[%clk 0:02:21]}  Bd7 {[%clk 0:01:40]} 17. Nf1 {[%clk 0:02:17]}  c6 {[%clk 0:01:30]} 18. Ne3 {[%clk 0:02:15]}  Bf8 {[%clk 0:01:21]} 19. Nf5 {[%clk 0:02:12]}  Bxf5 {[%clk 0:01:11]} 20. Qxf5 {[%clk 0:02:13]}  Qe7 {[%clk 0:01:12]} 21. Bf4 {[%clk 0:02:09]}  g6 {[%clk 0:01:08]} 22. Qe5 {[%clk 0:02:08]}  Re8 {[%clk 0:01:05]} 23. Re1 {[%clk 0:02:04]}  Qd8 {[%clk 0:00:55]} 24. Re3 {[%clk 0:01:32]}  Rxe5 {[%clk 0:00:50]} 25. dxe5 {[%clk 0:01:33]}  Nh5 {[%clk 0:00:35]} 26. Bh2 {[%clk 0:01:32]}  Qg5 {[%clk 0:00:34]} 27. Kf1 {[%clk 0:01:26]}  Nf4 {[%clk 0:00:33]} 28. Bg3 {[%clk 0:01:22]}  Ne6 {[%clk 0:00:31]} 29. h4 {[%clk 0:01:20]}  Qd8 {[%clk 0:00:27]} 30. f4 {[%clk 0:01:19]}  Bc5 {[%clk 0:00:27]} 31. Rf3 {[%clk 0:01:18]}  Ng7 {[%clk 0:00:26]} 32. f5 {[%clk 0:01:15]}  gxf5 {[%clk 0:00:25]} 33. Bxf5 {[%clk 0:01:15]}  Nxf5 {[%clk 0:00:26]} 34. Rxf5 {[%clk 0:01:15]}  d4 {[%clk 0:00:20]} 35. e6 {[%clk 0:01:13]}  fxe6 {[%clk 0:00:16]} 36. Rxc5 {[%clk 0:01:06]}  Qf8+ {[%clk 0:00:16]} 0-1

[Event "December 19 Early 2023"]
[Site "https://www.chess.com"]
[Date "2023.12.19"]
[Round "11"]
[White "Guimaraes, Wagner Peixoto"]
[Black "Lacasa Diaz, Josep Anton"]
[Result "1-0"]
[Board "105"]
[TimeControl "180+1"]
[WhiteFideId "2100940"]
[BlackFideId "2203375"]
[WhiteElo "2140"]
[BlackElo "2338"]
[WhiteTeam "BRA"]
[BlackTeam "ESP"]
[WhiteClock "0:01:00"]
[BlackClock "0:00:49"]

1. d4 {[%clk 0:02:55]}  Nf6 {[%clk 0:02:55]} 2. c4 {[%clk 0:02:54]}  c5 {[%clk 0:02:55]} 3. d5 {[%clk 0:02:53]}  g6 {[%clk 0:02:55]} 4. Nc3 {[%clk 0:02:52]}  Bg7 {[%clk 0:02:56]} 5. e4 {[%clk 0:02:53]}  O-O {[%clk 0:02:56]} 6. Nf3 {[%clk 0:02:52]}  d6 {[%clk 0:02:56]} 7. h3 {[%clk 0:02:52]}  Nbd7 {[%clk 0:02:52]} 8. Be2 {[%clk 0:02:50]}  Re8 {[%clk 0:02:51]} 9. O-O {[%clk 0:02:49]}  a6 {[%clk 0:02:48]} 10. a4 {[%clk 0:02:48]}  e5 {[%clk 0:02:46]} 11. dxe6 {[%clk 0:02:48]}  Rxe6 {[%clk 0:02:45]} 12. Ng5 {[%clk 0:02:47]}  Re8 {[%clk 0:02:43]} 13. Qxd6 {[%clk 0:02:41]}  h6 {[%clk 0:02:40]} 14. Nf3 {[%clk 0:02:29]}  Nxe4 {[%clk 0:02:36]} 15. Nxe4 {[%clk 0:02:30]}  Rxe4 {[%clk 0:02:36]} 16. Be3 {[%clk 0:02:15]}  Qe7 {[%clk 0:02:22]} 17. Qxe7 {[%clk 0:02:11]}  Rxe7 {[%clk 0:02:22]} 18. Rab1 {[%clk 0:02:08]}  a5 {[%clk 0:02:19]} 19. Rfd1 {[%clk 0:01:56]}  b6 {[%clk 0:02:19]} 20. Rd6 {[%clk 0:01:49]}  Rb8 {[%clk 0:02:02]} 21. b3 {[%clk 0:01:44]}  Bb7 {[%clk 0:01:48]} 22. Rbd1 {[%clk 0:01:41]}  Nf8 {[%clk 0:01:33]} 23. Rxb6 {[%clk 0:01:18]}  Bxf3 {[%clk 0:01:28]} 24. Rxb8 {[%clk 0:01:17]}  Bxe2 {[%clk 0:01:28]} 25. Rdd8 {[%clk 0:01:14]}  Rc7 {[%clk 0:01:09]} 26. Bf4 {[%clk 0:01:07]}  Rc6 {[%clk 0:00:49]} 27. Bd6 {[%clk 0:01:00]} 1-0

[Event "December 19 Early 2023"]
[Site "https://www.chess.com"]
[Date "2023.12.19"]
[Round "11"]
[White "Kotlyar, Kirill"]
[Black "Serra Canals, Oriol"]
[Result "1-0"]
[Board "107"]
[TimeControl "180+1"]
[WhiteFideId "24145599"]
[BlackFideId "22276084"]
[WhiteElo "2397"]
[BlackElo "2108"]
[WhiteTeam "RUS"]
[BlackTeam "ESP"]
[WhiteClock "0:00:32"]
[BlackClock "0:00:02"]

1. e4 {[%clk 0:03:00]}  e6 {[%clk 0:03:00]} 2. Nf3 {[%clk 0:03:00]}  d5 {[%clk 0:03:00]} 3. Nc3 {[%clk 0:03:01]}  Nf6 {[%clk 0:02:58]} 4. e5 {[%clk 0:03:02]}  Nfd7 {[%clk 0:02:59]} 5. d4 {[%clk 0:03:02]}  c5 {[%clk 0:03:00]} 6. dxc5 {[%clk 0:03:03]}  Bxc5 {[%clk 0:02:56]} 7. Bf4 {[%clk 0:03:04]}  Nc6 {[%clk 0:02:54]} 8. Bd3 {[%clk 0:03:03]}  a6 {[%clk 0:02:41]} 9. O-O {[%clk 0:03:02]}  b5 {[%clk 0:02:42]} 10. Qe2 {[%clk 0:02:53]}  Be7 {[%clk 0:02:39]} 11. h3 {[%clk 0:02:49]}  Nc5 {[%clk 0:02:39]} 12. Rad1 {[%clk 0:02:48]}  Nxd3 {[%clk 0:02:39]} 13. Qxd3 {[%clk 0:02:49]}  Bb7 {[%clk 0:02:37]} 14. Ne2 {[%clk 0:02:49]}  Rc8 {[%clk 0:02:36]} 15. c3 {[%clk 0:02:48]}  Qb6 {[%clk 0:02:30]} 16. Be3 {[%clk 0:02:42]}  Bc5 {[%clk 0:02:28]} 17. Ned4 {[%clk 0:02:41]}  Bxd4 {[%clk 0:02:26]} 18. Bxd4 {[%clk 0:02:32]}  Qd8 {[%clk 0:02:21]} 19. Qe3 {[%clk 0:02:25]}  Na5 {[%clk 0:02:18]} 20. b3 {[%clk 0:02:23]}  Nc6 {[%clk 0:02:17]} 21. Bc5 {[%clk 0:02:23]}  Ne7 {[%clk 0:02:14]} 22. b4 {[%clk 0:02:04]}  O-O {[%clk 0:02:02]} 23. Nd4 {[%clk 0:02:04]}  Re8 {[%clk 0:02:01]} 24. f4 {[%clk 0:02:03]}  g6 {[%clk 0:01:57]} 25. Rde1 {[%clk 0:02:03]}  Nf5 {[%clk 0:01:30]} 26. Qd3 {[%clk 0:01:52]}  Qh4 {[%clk 0:00:57]} 27. Nxf5 {[%clk 0:01:39]}  gxf5 {[%clk 0:00:58]} 28. Re3 {[%clk 0:01:32]}  Kh8 {[%clk 0:00:57]} 29. Kh2 {[%clk 0:01:29]}  Rg8 {[%clk 0:00:49]} 30. g3 {[%clk 0:01:29]}  Qh5 {[%clk 0:00:46]} 31. Be7 {[%clk 0:01:23]}  Rg6 {[%clk 0:00:44]} 32. Bf6+ {[%clk 0:01:17]}  Kg8 {[%clk 0:00:27]} 33. Bg5 {[%clk 0:01:17]}  Rxg5 {[%clk 0:00:22]} 34. fxg5 {[%clk 0:01:16]}  Qxg5 {[%clk 0:00:23]} 35. Rf4 {[%clk 0:01:12]}  Kh8 {[%clk 0:00:22]} 36. Qd4 {[%clk 0:01:11]}  Rc4 {[%clk 0:00:21]} 37. Qd2 {[%clk 0:00:38]}  Rxf4 {[%clk 0:00:21]} 38. gxf4 {[%clk 0:00:39]}  Qxf4+ {[%clk 0:00:22]} 39. Kg1 {[%clk 0:00:39]}  Qg5+ {[%clk 0:00:23]} 40. Kf1 {[%clk 0:00:35]}  f4 {[%clk 0:00:18]} 41. Rf3 {[%clk 0:00:29]}  d4 {[%clk 0:00:17]} 42. Qxf4 {[%clk 0:00:26]}  Qxf4 {[%clk 0:00:08]} 43. Rxf4 {[%clk 0:00:27]}  dxc3 {[%clk 0:00:09]} 44. Ke2 {[%clk 0:00:26]}  Kg7 {[%clk 0:00:08]} 45. Kd3 {[%clk 0:00:26]}  Bd5 {[%clk 0:00:07]} 46. a3 {[%clk 0:00:25]}  c2 {[%clk 0:00:03]} 47. Kxc2 {[%clk 0:00:25]}  h5 {[%clk 0:00:04]} 48. h4 {[%clk 0:00:25]}  Kg6 {[%clk 0:00:04]} 49. Rf6+ {[%clk 0:00:24]}  Kg7 {[%clk 0:00:04]} 50. Kc3 {[%clk 0:00:24]}  Bc4 {[%clk 0:00:04]} 51. Kd4 {[%clk 0:00:25]}  Bd5 {[%clk 0:00:03]} 52. Kc5 {[%clk 0:00:26]}  Bc4 {[%clk 0:00:03]} 53. Kb6 {[%clk 0:00:26]}  Bd3 {[%clk 0:00:04]} 54. Kxa6 {[%clk 0:00:27]}  Bc4 {[%clk 0:00:04]} 55. Kb6 {[%clk 0:00:28]}  Bd3 {[%clk 0:00:05]} 56. Kc7 {[%clk 0:00:28]}  Bc4 {[%clk 0:00:05]} 57. Kd8 {[%clk 0:00:29]}  Bd3 {[%clk 0:00:06]} 58. Ke7 {[%clk 0:00:30]}  Bg6 {[%clk 0:00:06]} 59. Kd6 {[%clk 0:00:28]}  Bd3 {[%clk 0:00:06]} 60. Kc5 {[%clk 0:00:28]}  Be2 {[%clk 0:00:05]} 61. Kb6 {[%clk 0:00:28]}  Bd3 {[%clk 0:00:06]} 62. Ka5 {[%clk 0:00:29]}  Bc4 {[%clk 0:00:04]} 63. a4 {[%clk 0:00:30]}  bxa4 {[%clk 0:00:05]} 64. Kxa4 {[%clk 0:00:31]}  Kf8 {[%clk 0:00:06]} 65. Ka5 {[%clk 0:00:30]}  Ke7 {[%clk 0:00:06]} 66. b5 {[%clk 0:00:31]}  Bd3 {[%clk 0:00:05]} 67. Ka6 {[%clk 0:00:29]}  Ke8 {[%clk 0:00:02]} 68. Kb6 {[%clk 0:00:29]}  Ke7 {[%clk 0:00:02]} 69. Kc6 {[%clk 0:00:29]}  Be4+ {[%clk 0:00:02]} 70. Kc7 {[%clk 0:00:30]}  Bd5 {[%clk 0:00:02]} 71. b6 {[%clk 0:00:31]}  Be4 {[%clk 0:00:02]} 72. b7 {[%clk 0:00:31]}  Bxb7 {[%clk 0:00:03]} 73. Kxb7 {[%clk 0:00:31]}  Ke8 {[%clk 0:00:04]} 74. Rh6 {[%clk 0:00:29]}  Ke7 {[%clk 0:00:04]} 75. Rxh5 {[%clk 0:00:30]}  Kf8 {[%clk 0:00:05]} 76. Rg5 {[%clk 0:00:30]}  Ke7 {[%clk 0:00:04]} 77. h5 {[%clk 0:00:30]}  Kf8 {[%clk 0:00:04]} 78. h6 {[%clk 0:00:30]}  f6 {[%clk 0:00:05]} 79. exf6 {[%clk 0:00:31]}  Kf7 {[%clk 0:00:05]} 80. h7 {[%clk 0:00:32]}  Kxf6 {[%clk 0:00:06]} 81. Rg8 {[%clk 0:00:32]}  e5 {[%clk 0:00:04]} 82. h8=Q+ {[%clk 0:00:33]}  Kf7 {[%clk 0:00:02]} 83. Qg7+ {[%clk 0:00:32]} 1-0